fUST/lending_fUST_20250717
["ID","MTS","AMOUNT","RATE_DAILY","PERIOD"]
[372772336,1752757764315,-460.0,0.00016938,2]
[372772337,1752757764337,-460.0,0.00016938,2]
[372772338,1752757764361,-460.0,0.00016938,2]
[372772339,1752757764381,-460.0,0.00016938,2]
[372772340,1752757764403,-460.0,0.00016938,2]
[372772341,1752757764425,-460.0,0.00016938,2]
[372772342,1752757764447,-460.0,0.00016938,2]
[372772343,1752757764468,-460.0,0.00016938,2]
[372772344,1752757764489,-465.31352507,0.00016938,2]
[372772345,1752757764513,-460.0,0.00016938,2]
[372772346,1752757764536,-514.41073512,0.00016938,2]
[372772347,1752757764559,-164.21028227,0.00016938,2]
[372772348,1752757764581,-460.0,0.00016938,2]
[372772349,1752757764607,-460.0,0.00016938,2]
[372772350,1752757764627,-379.57548603,0.00016938,2]
[372772351,1752757764649,-460.0,0.00016938,2]
[372772352,1752757764671,-460.0,0.00016938,2]
[372772353,1752757764691,-460.0,0.00016938,2]
[372772354,1752757764713,-460.0,0.00016938,2]
[372772355,1752757764731,-460.0,0.00016938,2]
[372772356,1752757764751,-460.0,0.00016938,2]
[372772357,1752757764770,-469.6189657,0.00016938,2]
[372772358,1752757764791,-460.0,0.00016938,2]
[372772359,1752757764811,-460.0,0.00016938,2]
[372772360,1752757764831,-460.0,0.00016938,2]
[372772361,1752757764854,-460.0,0.00016938,2]
[372772362,1752757764873,-500.0,0.00016938,2]
[372772363,1752757764893,-420.0,0.00016938,2]
[372772364,1752757764913,-460.0,0.00016938,2]
[372772365,1752757764935,-537.06,0.00016938,2]
[372772366,1752757764957,-483.28,0.00016938,2]
[372772367,1752757764980,-460.0,0.00016938,2]
[372772368,1752757765006,-460.0,0.00016938,2]
[372772369,1752757765029,-460.0,0.00016938,2]
[372772370,1752757765052,-153.73076384,0.00016938,2]
[372772371,1752757765075,-460.0,0.00016938,2]
[372772372,1752757765099,-460.0,0.00016938,2]
[372772373,1752757765120,-551.12374741,0.00016938,2]
[372772374,1752757765141,-460.0,0.00016938,2]
[372772375,1752757765160,-460.0,0.00016938,2]
[372772376,1752757765182,-460.0,0.00016938,2]
[372772377,1752757765203,-586.38,0.00016938,2]
[372772378,1752757765225,-460.0,0.00016938,2]
[372772379,1752757765245,-460.0,0.00016938,2]
[372772380,1752757765267,-1160.93,0.00016938,2]
[372772381,1752757765287,-460.0,0.00016938,2]
[372772382,1752757765307,-460.0,0.00016938,2]
[372772383,1752757765328,-509.94723468,0.00016938,2]
[372772384,1752757765350,-460.0,0.00016938,2]
[372772385,1752757765371,-460.0,0.00016938,2]
[372772386,1752757765392,-460.0,0.00016938,2]
[372772387,1752757765413,-460.0,0.00016938,2]
[372772388,1752757765435,-460.0,0.00016938,2]
[372772389,1752757765457,-491.49,0.00016938,2]
[372772390,1752757765478,-460.0,0.00016938,2]
[372772391,1752757765521,-460.0,0.00016938,2]
[372772392,1752757765541,-460.0,0.00016938,2]
[372772393,1752757765563,-3427.23,0.00016938,2]
[372772394,1752757765584,-473.39,0.00016938,2]
[372772395,1752757765605,-460.0,0.00016938,2]
[372772396,1752757765626,-460.0,0.00016938,2]
[372772397,1752757765647,-460.0,0.00016938,2]
[372772398,1752757765667,-460.0,0.00016938,2]
[372772399,1752757765690,-460.0,0.00016938,2]
[372772400,1752757765711,-460.0,0.00016938,2]
[372772401,1752757765730,-460.0,0.00016938,2]
[372772402,1752757765751,-756.53,0.00016938,2]
[372772403,1752757765771,-460.0,0.00016938,2]
[372772404,1752757765792,-1003.99,0.00016938,2]
[372772405,1752757765811,-460.0,0.00016938,2]
[372772406,1752757765833,-460.0,0.00016938,2]
[372772407,1752757765855,-487.37676396,0.00016938,2]
[372772408,1752757765875,-460.0,0.00016938,2]
[372772409,1752757765895,-460.0,0.00016938,2]
[372772410,1752757765916,-460.0,0.00016938,2]
[372772411,1752757765937,-460.0,0.00016938,2]
[372772412,1752757765958,-460.0,0.00016938,2]
[372772413,1752757765979,-460.0,0.00016938,2]
[372772414,1752757766004,-460.0,0.00016938,2]
[372772415,1752757766044,-460.0,0.00016938,2]
[372772416,1752757766065,-16038.42738352,0.00016939,2]
[372772417,1752757766336,-100.14,0.00016939,2]
[372772418,1752757766351,-500.0,0.00016939,2]
[372772419,1752757766365,-500.0,0.00016939,2]
[372772420,1752757766380,-460.0,0.00016939,2]
[372772421,1752757766394,-460.0,0.00016939,2]
[372772422,1752757766484,-460.0,0.00016933,2]
[372772423,1752757766726,-9540.0,0.00016939,2]
[372772424,1752757766766,-10000.0,0.00016939,2]
[372772425,1752757766780,-10000.0,0.00016939,2]
[372772426,1752757766794,-10000.0,0.00016939,2]
[372772427,1752757766808,-4974.71804908,0.00016939,2]
[372772428,1752757766818,-500.0,0.00016973,2]
[372772429,1752757766827,-500.0,0.00016973,2]
[372772430,1752757766837,-318.49860863,0.00016973,2]
[372772431,1752757766852,-152.23927658,0.00016973,2]
[372772432,1752757766861,-500.0,0.00016973,2]
[372772433,1752757766871,-500.0,0.00016973,2]
[372772434,1752757766881,-500.0,0.00016973,2]
[372772435,1752757766890,-500.0,0.00016973,2]
[372772436,1752757766900,-501.15315688,0.00016973,2]
[372772437,1752757769013,1214.17,0.00016938,2]
[372772438,1752757770428,460.0,0.00016938,2]
[372772439,1752757774635,460.0,0.00016933,2]
[372772440,1752757779000,460.0,0.00016938,2]
[372772441,1752757779854,1348.48,0.00016933,2]
[372772442,1752757780715,505.21,0.00016935,2]
[372772443,1752757784703,460.0,0.00016938,2]
[372772444,1752757792693,460.0,0.00016938,2]
[372772445,1752757794059,502.11,0.00016938,2]
[372772447,1752757799300,-460.0,0.00017037,2]
[372772448,1752757799340,-460.0,0.00017037,2]
[372772449,1752757799384,-460.0,0.00017037,2]
[372772450,1752757799418,-460.0,0.00017037,2]
[372772451,1752757799455,-500.0,0.00017037,2]
[372772452,1752757799496,-500.0,0.00017037,2]
[372772453,1752757799533,-269.37691507,0.00017037,2]
[372772454,1752757799572,-460.0,0.00017037,2]
[372772455,1752757799607,-460.0,0.00017037,2]
[372772456,1752757799645,-460.0,0.00017037,2]
[372772457,1752757799681,-150.55855783,0.00017037,2]
[372772458,1752757799717,-260.1290542,0.00017037,2]
[372772459,1752757799870,-199.8709458,0.00017037,2]
[372772460,1752757799907,-579.87990335,0.00017037,2]
[372772461,1752757799942,-384.83249939,0.00017037,2]
[372772462,1752757799977,-460.0,0.00017037,2]
[372772463,1752757800022,-460.0,0.00017037,2]
[372772464,1752757800060,-460.0,0.00017037,2]
[372772465,1752757800096,-262.96757718,0.00017037,2]
[372772466,1752757800133,-460.0,0.00017037,2]
[372772467,1752757800171,-460.0,0.00017037,2]
[372772468,1752757800208,-460.0,0.00017037,2]
[372772469,1752757800245,-539.88,0.00017037,2]
[372772470,1752757800282,-85.13814856,0.00017037,2]
[372772471,1752757800414,460.0,0.00016938,2]
[372772472,1752757800516,-374.86185144,0.00017037,2]
[372772473,1752757800755,-460.0,0.00017037,2]
[372772474,1752757800803,-460.0,0.00017037,2]
[372772475,1752757800836,-460.0,0.00017037,2]
[372772476,1752757800870,-460.0,0.00017037,2]
[372772477,1752757800904,-460.0,0.00017037,2]
[372772478,1752757800938,-1710.21,0.00017037,2]
[372772479,1752757800971,-460.0,0.00017037,2]
[372772480,1752757801295,-460.0,0.00017037,2]
[372772481,1752757801330,-2185.37,0.00017037,2]
[372772482,1752757801365,-892.4,0.00017037,2]
[372772483,1752757801401,-460.0,0.00017037,2]
[372772484,1752757801433,-460.0,0.00017037,2]
[372772485,1752757801467,-460.0,0.00017037,2]
[372772486,1752757801728,-1356.22,0.00017037,2]
[372772487,1752757801760,-460.0,0.00017037,2]
[372772488,1752757801794,-2055.78,0.00017037,2]
[372772489,1752757801917,-2256.0,0.00017037,2]
[372772490,1752757801950,-626.82,0.00017037,2]
[372772491,1752757801983,-1262.98,0.00017037,2]
[372772492,1752757802019,-460.0,0.00017038,2]
[372772493,1752757802053,-164.97,0.00017038,2]
[372772494,1752757802123,460.0,0.00016935,2]
[372772495,1752757802337,-458.46,0.00017038,2]
[372772496,1752757802370,-460.0,0.00017038,2]
[372772497,1752757802403,-460.0,0.00017038,2]
[372772498,1752757802436,-460.0,0.00017038,2]
[372772499,1752757802467,-526.47311081,0.00017038,2]
[372772500,1752757802499,-460.0,0.00017038,2]
[372772501,1752757802532,-460.0,0.0001704,2]
[372772502,1752757802562,-552.96923944,0.0001704,2]
[372772503,1752757802595,-460.0,0.0001704,2]
[372772504,1752757802630,-460.0,0.0001704,2]
[372772505,1752757802661,-24.1952995,0.0001704,2]
[372772506,1752757802729,-435.8047005,0.0001704,2]
[372772507,1752757802759,-460.0,0.0001704,2]
[372772508,1752757802790,-464.83603832,0.0001704,2]
[372772509,1752757802821,-415.2199377,0.0001704,2]
[372772510,1752757802852,-460.0,0.0001704,2]
[372772511,1752757802885,-460.0,0.0001704,2]
[372772512,1752757802917,-460.0,0.0001704,2]
[372772513,1752757802948,-532.20481744,0.0001704,2]
[372772514,1752757802980,-460.0,0.0001704,2]
[372772515,1752757803015,-460.0,0.0001704,2]
[372772516,1752757803050,-323.86901208,0.0001704,2]
[372772517,1752757803387,-136.13098792,0.0001704,2]
[372772518,1752757803417,-3432.0,0.0001704,2]
[372772519,1752757803448,-460.0,0.00017043,2]
[372772520,1752757803481,-460.0,0.00017043,2]
[372772521,1752757803512,-460.0,0.00017043,2]
[372772522,1752757803806,-188.29,0.00017043,2]
[372772523,1752757803839,-460.0,0.00017043,2]
[372772524,1752757803871,-460.0,0.00017043,2]
[372772525,1752757803905,-460.0,0.00017043,2]
[372772527,1752757807728,590.3,0.00016938,2]
[372772528,1752757808753,319.1853067,0.00016938,2]
[372772529,1752757810553,491.14493759,0.0001704,2]
[372772530,1752757812948,460.0,0.00017043,2]
[372772531,1752757813719,500.0,0.00016933,2]
[372772532,1752757814058,500.0,0.00016933,2]
[372772533,1752757814104,500.0,0.00016933,2]
[372772534,1752757814160,500.0,0.00016933,2]
[372772535,1752757814280,500.0,0.00016933,2]
[372772536,1752757814341,274.35489307,0.00016933,2]
[372772537,1752757814492,500.0,0.00016933,2]
[372772538,1752757818387,460.0,0.00016933,2]
[372772539,1752757822424,460.0,0.00016935,2]
[372772540,1752757822539,460.0,0.00016938,2]
[372772541,1752757822840,348.43486264,0.00016935,2]
[372772542,1752757822867,888.08513736,0.00016935,2]
[372772543,1752757824146,460.0,0.00016938,2]
[372772544,1752757826638,460.0,0.00016938,2]
[372772545,1752757830239,460.0,0.00016935,2]
[372772546,1752757831536,473.29,0.00016938,2]
[372772586,1752757832422,-1200.0,0.00017141,2]
[372772587,1752757832432,-460.0,0.00017142,2]
[372772588,1752757832441,-460.0,0.00017142,2]
[372772589,1752757832451,-460.0,0.00017142,2]
[372772590,1752757832461,-460.0,0.00017142,2]
[372772591,1752757832471,-460.0,0.00017207,2]
[372772592,1752757832481,-460.0,0.00017207,2]
[372772593,1752757832491,-497.20491522,0.00017207,2]
[372772594,1752757832501,-1348.48,0.00017207,2]
[372772595,1752757832512,-460.0,0.00017209,2]
[372772596,1752757832523,-460.0,0.00017209,2]
[372772598,1752757832533,-514.52089144,0.00017209,2]
[372772599,1752757832543,-460.0,0.00017209,2]
[372772600,1752757832552,-336.02597591,0.00017209,2]
[372772601,1752757832567,-460.0,0.00017209,2]
[372772602,1752757832583,-3042.05,0.00017209,2]
[372772603,1752757832595,-2359.1,0.00017209,2]
[372772604,1752757832605,-554.91,0.00017209,2]
[372772605,1752757832618,-460.0,0.00017209,2]
[372772606,1752757832628,-460.0,0.00017209,2]
[372772607,1752757832638,-460.0,0.00017209,2]
[372772608,1752757832648,-1687.71,0.00017209,2]
[372772609,1752757832660,-1617.64081833,0.00017209,2]
[372772610,1752757832673,-469.53918167,0.00017209,2]
[372772611,1752757832683,-460.0,0.00017209,2]
[372772612,1752757832693,-1130.07,0.00017209,2]
[372772613,1752757832703,-505.21,0.00017209,2]
[372772614,1752757832713,-460.0,0.00017209,2]
[372772615,1752757832725,-1236.52,0.00017209,2]
[372772616,1752757832735,-460.0,0.00017209,2]
[372772617,1752757832745,-427.06258271,0.0001721,2]
[372772618,1752757832755,-9390.73820233,0.0001721,2]
[372772619,1752757832765,-460.0,0.00017211,2]
[372772620,1752757832776,-460.0,0.00017212,2]
[372772621,1752757832786,-460.0,0.00017212,2]
[372772622,1752757832795,-460.0,0.00017212,2]
[372772623,1752757832805,-221.71658055,0.00017212,2]
[372772624,1752757832815,-460.0,0.00017212,2]
[372772625,1752757832824,-460.0,0.00017212,2]
[372772626,1752757832834,-460.0,0.00017212,2]
[372772627,1752757832844,-460.0,0.00017212,2]
[372772628,1752757832853,-460.0,0.00017212,2]
[372772629,1752757832863,-460.0,0.00017212,2]
[372772630,1752757832874,-460.0,0.00017212,2]
[372772631,1752757832884,-460.0,0.00017212,2]
[372772632,1752757832894,-586.38,0.00017212,2]
[372772633,1752757832903,-460.0,0.00017212,2]
[372772634,1752757832915,-460.0,0.00017212,2]
[372772635,1752757832924,-460.0,0.00017212,2]
[372772636,1752757832934,-460.0,0.00017212,2]
[372772637,1752757832944,-460.0,0.00017212,2]
[372772638,1752757832954,-460.0,0.00017212,2]
[372772639,1752757832964,-460.0,0.00017212,2]
[372772640,1752757832973,-460.0,0.00017212,2]
[372772641,1752757832983,-491.49,0.00017212,2]
[372772642,1752757832993,-460.0,0.00017212,2]
[372772643,1752757833002,-460.0,0.00017212,2]
[372772644,1752757833014,-3427.23,0.00017212,2]
[372772645,1752757833025,-473.39,0.00017212,2]
[372772646,1752757833035,-460.0,0.00017212,2]
[372772647,1752757833045,-460.0,0.00017212,2]
[372772648,1752757833056,-460.0,0.00017212,2]
[372772649,1752757833066,-756.53,0.00017212,2]
[372772650,1752757833077,-460.0,0.00017212,2]
[372772651,1752757833087,-1003.99,0.00017212,2]
[372772652,1752757833096,-460.0,0.00017212,2]
[372772653,1752757833106,-460.0,0.00017212,2]
[372772654,1752757833117,-460.0,0.00017212,2]
[372772655,1752757833126,-460.0,0.00017212,2]
[372772656,1752757833136,-476.40030117,0.00017212,2]
[372772657,1752757833145,-460.0,0.00017212,2]
[372772658,1752757833155,-460.0,0.00017212,2]
[372772659,1752757833166,-1214.17,0.00017212,2]
[372772660,1752757833179,-460.0,0.00017212,2]
[372772661,1752757833189,-460.0,0.00017212,2]
[372772662,1752757833199,-460.0,0.00017212,2]
[372772663,1752757833208,-502.11,0.00017212,2]
[372772664,1752757833218,-460.0,0.00017212,2]
[372772665,1752757833227,-590.3,0.00017212,2]
[372772666,1752757833237,-460.0,0.00017212,2]
[372772667,1752757833247,-460.0,0.00017212,2]
[372772668,1752757833257,-473.29,0.00017212,2]
[372772669,1752757833266,-460.0,0.00017311,2]
[372772670,1752757833276,-460.0,0.00017311,2]
[372772671,1752757833286,-460.0,0.00017311,2]
[372772672,1752757833296,-460.0,0.00017311,2]
[372772673,1752757833306,-460.0,0.00017311,2]
[372772674,1752757833316,-460.0,0.00017311,2]
[372772675,1752757833325,-539.88,0.00017311,2]
[372772676,1752757833335,-460.0,0.00017311,2]
[372772677,1752757833345,-460.0,0.00017311,2]
[372772678,1752757833355,-460.0,0.00017311,2]
[372772679,1752757833365,-460.0,0.00017311,2]
[372772680,1752757833375,-1710.21,0.00017311,2]
[372772681,1752757833384,-460.0,0.00017311,2]
[372772682,1752757833394,-2185.37,0.00017311,2]
[372772683,1752757833404,-892.4,0.00017311,2]
[372772684,1752757833415,-460.0,0.00017311,2]
[372772685,1752757833425,-460.0,0.00017311,2]
[372772686,1752757833435,-1356.22,0.00017311,2]
[372772687,1752757833444,-4311.78,0.00017311,2]
[372772688,1752757833454,-626.82,0.00017311,2]
[372772689,1752757833464,-1262.98,0.00017311,2]
[372772690,1752757833474,-623.43,0.00017312,2]
[372772691,1752757833484,-460.0,0.00017312,2]
[372772692,1752757833495,-460.0,0.00017312,2]
[372772693,1752757833505,-460.0,0.00017314,2]
[372772694,1752757833515,-460.0,0.00017481,2]
[372772695,1752757833525,-1348.48,0.00017481,2]
[372772696,1752757833535,-460.0,0.00017483,2]
[372772697,1752757833545,-460.0,0.00017483,2]
[372772698,1752757833555,-3042.05,0.00017483,2]
[372772699,1752757833565,-2359.1,0.00017483,2]
[372772700,1752757833574,-554.91,0.00017483,2]
[372772701,1752757833584,-460.0,0.00017483,2]
[372772702,1752757833594,-561.69027837,0.00017483,2]
[372772703,1752757833604,-1687.71,0.00017483,2]
[372772704,1752757833615,-2087.18,0.00017483,2]
[372772705,1752757833625,-460.0,0.00017483,2]
[372772706,1752757833635,-1130.07,0.00017483,2]
[372772707,1752757833644,-505.21,0.00017483,2]
[372772708,1752757833654,-1236.52,0.00017483,2]
[372772709,1752757833665,-460.0,0.00017483,2]
[372772710,1752757833674,-460.0,0.00017485,2]
[372772711,1752757833684,-460.0,0.00017486,2]
[372772712,1752757833892,-460.0,0.00017486,2]
[372772713,1752757833902,-460.0,0.00017486,2]
[372772714,1752757833913,-21.2976014,0.00017486,2]
[372772752,1752757838395,-195.92829712,0.0001731,2]
[372772754,1752757838406,-500.0,0.0001731,2]
[372772756,1752757838416,-307.32670288,0.0001731,2]
[372772758,1752757838428,-192.67329712,0.0001731,2]
[372772760,1752757838437,-500.0,0.0001731,2]
[372772762,1752757838447,-500.0,0.0001731,2]
[372772764,1752757838456,-219.10592352,0.0001731,2]
[372772766,1752757838465,-438.7023986,0.00017486,2]
[372772768,1752757838475,-460.0,0.00017486,2]
[372772770,1752757838484,-460.0,0.00017486,2]
[372772772,1752757838493,-460.0,0.00017486,2]
[372772774,1752757838503,-460.0,0.00017486,2]
[372772776,1752757838512,-491.49,0.00017486,2]
[372772777,1752757838521,-3427.23,0.00017486,2]
[372772778,1752757838531,-473.39,0.00017486,2]
[372772779,1752757838540,-460.0,0.00017486,2]
[372772781,1752757838550,-756.53,0.00017486,2]
[372772782,1752757838559,-1003.99,0.00017486,2]
[372772783,1752757838569,-460.0,0.00017486,2]
[372772784,1752757838578,-407.33878478,0.00017486,2]
[372772785,1752757838587,-460.0,0.00017486,2]
[372772787,1752757838597,-460.0,0.00017486,2]
[372772789,1752757838607,-460.0,0.00017486,2]
[372772790,1752757838616,-1214.17,0.00017486,2]
[372772792,1752757838625,-460.0,0.00017486,2]
[372772794,1752757838634,-460.0,0.00017486,2]
[372772796,1752757838644,-502.11,0.00017486,2]
[372772798,1752757838653,-460.0,0.00017486,2]
[372772800,1752757838662,-590.3,0.00017486,2]
[372772802,1752757838673,-460.0,0.00017486,2]
[372772804,1752757838682,-473.29,0.00017486,2]
[372772806,1752757838690,-1000.0,0.00017521,2]
[372772808,1752757838698,-9390.73820233,0.00017521,2]
[372772810,1752757838706,-500.0,0.00017546,2]
[372772812,1752757838716,-500.0,0.00017546,2]
[372772814,1752757838726,-500.0,0.00017546,2]
[372772816,1752757838736,-460.0,0.00017585,2]
[372772818,1752757838745,-460.0,0.00017585,2]
[372772820,1752757838755,-460.0,0.00017585,2]
[372772822,1752757838766,-473.44948089,0.00017585,2]
[372772824,1752757838776,-539.88,0.00017585,2]
[372772826,1752757838787,-460.0,0.00017585,2]
[372772828,1752757838796,-69.32864045,0.00017585,2]
[372772830,1752757838808,-390.67135955,0.00017585,2]
[372772832,1752757838818,-460.0,0.00017585,2]
[372772834,1752757838828,-1710.21,0.00017585,2]
[372772836,1752757838838,-460.0,0.00017585,2]
[372772838,1752757838847,-2185.37,0.00017585,2]
[372772840,1752757838857,-892.4,0.00017585,2]
[372772842,1752757838867,-460.0,0.00017585,2]
[372772844,1752757838876,-460.0,0.00017585,2]
[372772846,1752757838888,-1356.22,0.00017585,2]
[372772848,1752757838898,-4311.78,0.00017585,2]
[372772850,1752757838908,-626.82,0.00017585,2]
[372772852,1752757838921,-1262.98,0.00017585,2]
[372772854,1752757838931,-623.43,0.00017586,2]
[372772857,1752757838942,-460.0,0.00017588,2]
[372772859,1752757838951,-1100.0,0.00017673,2]
[372772861,1752757838962,-460.0,0.00017755,2]
[372772863,1752757838972,-1348.48,0.00017755,2]
[372772865,1752757838981,-460.0,0.00017757,2]
[372772867,1752757838991,-3042.05,0.00017757,2]
[372772869,1752757839002,-2359.1,0.00017757,2]
[372772871,1752757839011,-554.91,0.00017757,2]
[372772873,1752757839025,-460.0,0.00017757,2]
[372772875,1752757839035,-1687.71,0.00017757,2]
[372772877,1752757839045,-2087.18,0.00017757,2]
[372772879,1752757839056,-460.0,0.00017757,2]
[372772881,1752757839066,-1130.07,0.00017757,2]
[372772883,1752757839075,-505.21,0.00017757,2]
[372772885,1752757839085,-1236.52,0.00017757,2]
[372772887,1752757839095,-460.0,0.00017757,2]
[372772889,1752757839105,-533.25,0.00017759,2]
[372772891,1752757839114,-460.0,0.0001776,2]
[372772893,1752757839124,-460.0,0.0001776,2]
[372772895,1752757839133,-156.25097065,0.0001776,2]
[372772897,1752757839142,-460.0,0.0001776,2]
[372772899,1752757839151,-460.0,0.0001776,2]
[372772901,1752757839160,-491.49,0.0001776,2]
[372772902,1752757839173,-3427.23,0.0001776,2]
[372772904,1752757839182,-473.39,0.0001776,2]
[372772907,1752757839192,-460.0,0.0001776,2]
[372772909,1752757839201,-756.53,0.0001776,2]
[372772911,1752757839211,-1003.99,0.0001776,2]
[372772913,1752757839219,-460.0,0.0001776,2]
[372772915,1752757839228,-460.0,0.0001776,2]
[372772917,1752757839237,-460.0,0.0001776,2]
[372772919,1752757839247,-460.0,0.0001776,2]
[372772921,1752757839256,-1214.17,0.0001776,2]
[372772923,1752757839265,-460.0,0.0001776,2]
[372772925,1752757839274,-460.0,0.0001776,2]
[372772927,1752757839283,-502.11,0.0001776,2]
[372772929,1752757839293,-590.3,0.0001776,2]
[372772931,1752757839303,-460.0,0.0001776,2]
[372772933,1752757839312,-473.29,0.0001776,2]
[372772935,1752757839321,-9390.73820233,0.00017831,2]
[372772937,1752757839330,-500.51885288,0.00017831,2]
[372772939,1752757839339,-539.88,0.00017859,2]
[372772941,1752757839348,-460.0,0.00017859,2]
[372772943,1752757839357,-460.0,0.00017859,2]
[372772945,1752757839366,-1710.21,0.00017859,2]
[372772947,1752757839375,-460.0,0.00017859,2]
[372772948,1752757839384,-2185.37,0.00017859,2]
[372772950,1752757839394,-892.4,0.00017859,2]
[372772952,1752757839403,-460.0,0.00017859,2]
[372772954,1752757839412,-460.0,0.00017859,2]
[372772956,1752757839424,-1356.22,0.00017859,2]
[372772958,1752757839433,-4311.78,0.00017859,2]
[372772961,1752757839442,-626.82,0.00017859,2]
[372772963,1752757839452,-1262.98,0.00017859,2]
[372772965,1752757839462,-623.43,0.0001786,2]
[372772967,1752757839471,-460.0,0.00017862,2]
[372772969,1752757839480,-460.0,0.00018029,2]
[372772971,1752757839489,-1348.48,0.00018029,2]
[372772973,1752757839498,-3042.05,0.00018031,2]
[372772975,1752757839507,-2359.1,0.00018031,2]
[372772977,1752757839516,-554.91,0.00018031,2]
[372772979,1752757839525,-257.23,0.00018031,2]
[372772981,1752757839535,-1687.71,0.00018031,2]
[372772983,1752757839545,-2087.18,0.00018031,2]
[372772985,1752757839554,-460.0,0.00018031,2]
[372772987,1752757839564,-1130.07,0.00018031,2]
[372772989,1752757839573,-505.21,0.00018031,2]
[372772991,1752757839583,-1236.52,0.00018031,2]
[372772993,1752757839592,-460.0,0.00018031,2]
[372772995,1752757839601,-460.0,0.00018034,2]
[372772997,1752757839611,-460.0,0.00018034,2]
[372772999,1752757839620,-460.0,0.00018034,2]
[372773001,1752757839629,-460.0,0.00018034,2]
[372773003,1752757839638,-491.49,0.00018034,2]
[372773005,1752757839648,-3427.23,0.00018034,2]
[372773007,1752757839658,-473.39,0.00018034,2]
[372773009,1752757839669,-460.0,0.00018034,2]
[372773011,1752757839678,-756.53,0.00018034,2]
[372773013,1752757839688,-1003.99,0.00018034,2]
[372773015,1752757839699,-460.0,0.00018034,2]
[372773017,1752757839708,-460.0,0.00018034,2]
[372773019,1752757839717,-460.0,0.00018034,2]
[372773021,1752757839727,-460.0,0.00018034,2]
[372773023,1752757839736,-1214.17,0.00018034,2]
[372773025,1752757839748,-460.0,0.00018034,2]
[372773027,1752757839758,-502.11,0.00018034,2]
[372773029,1752757839767,-590.3,0.00018034,2]
[372773031,1752757839776,-460.0,0.00018034,2]
[372773033,1752757839786,-473.29,0.00018034,2]
[372773035,1752757839795,-1500.0,0.00018068,2]
[372773037,1752757839805,-500.0,0.00018094,2]
[372773039,1752757839815,-539.88,0.00018133,2]
[372773041,1752757839824,-460.0,0.00018133,2]
[372773043,1752757839833,-460.0,0.00018133,2]
[372773045,1752757839843,-1710.21,0.00018133,2]
[372773047,1752757839853,-2185.37,0.00018133,2]
[372773049,1752757839862,-892.4,0.00018133,2]
[372773052,1752757839872,-460.0,0.00018133,2]
[372773055,1752757839881,-460.0,0.00018133,2]
[372773058,1752757839891,-1356.22,0.00018133,2]
[372773061,1752757839900,-4311.78,0.00018133,2]
[372773064,1752757839910,-626.82,0.00018133,2]
[372773067,1752757839922,-1262.98,0.00018133,2]
[372773071,1752757839931,-623.43,0.00018134,2]
[372773074,1752757839941,-9390.73820233,0.00018141,2]
[372773077,1752757839951,-319.18530668,0.00018194,2]
[372773080,1752757839960,-624.92,0.00018299,3]